{"text_format":"1","workbook":"xlsx","n_sheets":4,"sheets":["Ark1","Ark2","Ark3","Ark4"],"not_rendered":{"charts":0,"images":37,"macros":1,"external_links":0,"defined_names":3,"comments":0,"pivot_tables":0},"unopened":[],"bounds":{"document_bytes":16777216,"sheet_cells":100000,"rows_first":2000,"rows_last":500,"rows_between":2000,"halvings":0,"cell_chars":16384,"cell_head_chars":4096},"cells_cut":0,"cells_raw":0,"read":"whole","date_system":"1900"}

{"sheet":"Ark1","index":0,"n_rows":169,"n_cols":91,"rows_kept":169,"cut":false,"hidden":false,"merged":[]}
[]
["                   Blå Spyfluer, Calliphora (Diptera: Calliphoridae) "]
[null,null,null,null,null,null,null,"Bent Haagen Petersen",null,null,null,null,null,null,null,null,null,null,null,null,null,null,null,null,null,null,null,null,null,null,null,null,null,null,null,"æ"]
["I Danmark omfatter slægten kun fire arter, To af arterne, C. vicina og C. vomitoria, er meget  "]
["almindelige, medens de to øvrige C. loewi og C. subalpina, er sjældne. Kendetegnende for alle  "]
["fire arter er det sorte bryst, der er bestøvet og har 3-4 sorte striber. Bagkroppen er metalskin-",null,null,null,null,null,null,null,null,null,null,null,null,null,null,null,null,null,null,null,null,null,null,null,null,null,null,"    Fig 1 Onesia",null,null,null,null,"    Fig 2 Cynomya"]
["nende blå med bestøvet mønster i større eller mindre omfang. Hovedet er meget kortere end ",null,null,null,null,null,null,null,null,null,null,null,null,null,null,null,null,null,null,null,null,null,null,null,null,null,null,null,null,null,null,null,null,0]
["bredt, mere eller mindre mørkt og rødgult. Følehornene er lange. På brystsiderne er farven på",null,null,null,null,null,null,null,null,null,null,null,null,null,null,null,null,null,null,null,null,null,null,null,null,null,null,null,null,null,null,null,null,0]
["spiraklerne vigtige kendetegn. Det samme gælde farven på vingernes basicosta. Brystskæl ved"]
["vingebasis har sort behåring og kan være røgfarvede eller hvidlige. Kindernes behåring er hos",null,null,null,null,null,null,null,null,null,null,null,null,null,null,null,null,null,null,null,null,null,null,null,null,null,null,null,null,null,null,null,null,0]
["C. vomitoria rød, hos de øvrige arter sort eller grålg",null,null,null,null,null,null,null,null,null,null,null,null,null,null,null,null,null,null,null,null,null,null,null,null,null,null,null,null,null,null,null,null,0]
[null,null,null,null,null,null,null,null,null,null,null,null,null,null,null,null,null,null,null,null,null,null,null,null,null,null,null,null,null,null,null,null,null,0]
["Calliphora-arter kan måske forveksles med andre spyfluearter. Onesia floralis (Fig.1) har pan-",null,null,null,null,null,null,null,null,null,null,null,null,null,null,null,null,null,null,null,null,null,null,null,null,null,null," Fig. 3 Protophormia",null,null,null,null,"  Fig. 4 Protocalliphora"]
["den fremskydende med hvide øjenlister, bagkrop olivenngrøn med skiftende mønster. Den oftest",null,null,null,null,null,null,null,null,null,null,null,null,null,null,null,null,null,null,null,null,null,null,null,null,null,null,null,null,null,null,null,null,0]
["store Cynomya mortuorum (Fig.2) har det meste af hovedet gyldendtgult. Brystet er  bestøvet",null,null,null,null,null,null,null,null,null,null,null,null,null,null,null,null,null,null,null,null,null,null,null,null,null,null,null,null,null,null,null,null,0]
["og har tre sorte striber. Brystskæl hvide. Bagkrop skinnende blågrøn. Protophormia terraeno- ",null,null,null,null,null,null,null,null,null,null,null,null,null,null,null,null,null,null,null,null,null,null,null,null,null,null,null,null,null,null,null,null,0]
["vae (Fig. 3) har bryst og bagkrop skinnende dybblå. Brystets acr-børster er korte, tynde hårlig- "]
["nende. Nedre calypter mørkt. Vingeårer sorte.  Protocalliphora azurea (Fig. 4) har brystet be-",null,null,null,null,null,null,null,null,null,null,null,null,null,null,null,null,null,null,null,null,null,null,null,null,null,null,null,null,null,null,null,null,0]
["støvet og 3  sorte striber. Acr-børsterne er kraftige, bagkrop skinnende, hos hanner sædvanlig-",null,null,null,null,null,null,null,null,null,null,null,null,null,null,null,null,null,null,null,null,null,null,null,null,null,null,null,null,null,null,null,null,0]
["vis blå, hos hunner grøn. Bellardia-arterne (Fig. 5) er ret små og olivengrønne. Følehorn meget",null,null,null,null,null,null,null,null,null,null,null,null,null,null,null,null,null,null,null,null,null,null,null,null,null,null,"     Fig 5 Bellardia",null,null,null,null,"         Fig. 6 Melinda",0]
["korte. Melinda omfatter to ret små arter med striber på brystet og bagkrop metalskinnende uden."]
["bestøvning.Vingeårer mørke.  Følehorn ret korte.",null,null,null,null,null,null,null,null,null,null,null,null,null,null,null,null,null,null,null,null,null,null,null,null,null,null,null,null,null,null,null,null,0]
[null,null,null,null,null,null,null,null,null,null,null,null,null,null,null,null,null,null,null,null,null,null,null,null,null,null,null,null,null,null,null,null,null,0]
[null,null,null,null,null,null,null,null,null,null,null,null,null,null,null,null,null,null,null,null,null,null,null,null,null,null,null,null,null,null,null,null,null,0]
[null,"Sådan bruger man bedst nøglen"]
["Nøglen er specielt konstrueret til brug ved bestemmelse af fluer på billeder. Den bruger samme kendetegn som de ",null,null,null,null,null,null,null,null,null,null,null,null,null,null,null,null,null,null,null,null,null,null,null,null,null,null,null,null,null,null,null,null,0]
["almindelige nøgler. Blot er man ikke nødt til at gå frem i nøglen i en given rækkefølge, som man jo skal med al-",null,null,null,null,null,null,null,null,null,null,null,null,null,null,null,null,null,null,null,null,null,null,null,null,null,null,null,"  Fig. 5",null,null,null,null,0]
["mindelige nøgler. Det er en fordel, da der på billeder som regel er kendetegn, der ikke er synlige. Med nøglen her",null,null,null,null,null,null,null,null,null,null,null,null,null,null,null,null,null,null,null,null,null,null,null,null,null,null,null,null,null,null,null,null,0]
["klikker man i helt vilkårlig rækkefølge på de kendetegn, man kan se på billedet. Man behøver altså ikke at  starte"]
["med øverste nøglespørgsmål. Det er altid bedst at starte med kendetegn, som er mest tydelige på billedet. Hver",null,null,null,null,null,null,null,null,null,null,null,null,null,null,null,null,null,null,null,null,null,null,null,null,null,null,null,null,null,null,null,null,0]
["gang man klikker på et kendetegn, vises dette på et billede. Klikker man på kendetegn, der ikke passer med nøg-",null,null,null,null,null,null,null,null,null,null,null,null,null,null,null,null,null,null,null,null,null,null,null,null,null,null,null,null,null,null,null,null,0]
["lens, gør nøglen opmærksom på, at en bestemmelse da næppe vil være mulig."]
[]
["I takt med, at mn klikker på kendetegn, kan man på oversigten over arterne se, at antallet af mulige arter bliver"]
["mindre. Når man frem til, at der kun er et navn tilbage i artsoversigten, skriver nøglen, at fluen nu er bestemt, og "]
["dens navn vises øverst på skemaet. Derefter bør man klikke på fluens navn i artsoversigten for at læse beskrivel-"]
["sen af fluen. Samtidig hermed vises et billede af arten. Er man derefter helt sikker på bestemmelsen, kan man "]
["indrapportere observationen. Er man ikke særlig øvet i at bestemme fluer, bør man sikre sig, at bestemmelsen"]
["er rigtig ved først at vise den i Fugle & Naturs Tovinge-forum."]
[]
[]
[null,null,null,null,null,null,null,null,null,null,null,null,null,null,null,null,null,null,null,null,null,null,null,null,null,null,null,null,null,null,null,null,null,null," "," ",null,null,null,null,null,null,null,null,null,null,null," ",null," ",null,null,null,null,null,null,null,null,null,null,0]
[]
["            Nøgle til danske Blå Spyfluer, Calliphora (Diptera: Calliphoridae)",null,null,null,null,null,null,null,null,null,null,null,null,null,null,null,null,null,null,null,null,null,null,null,null,null,null,null,null,null,null," Læs oven over nøglen om Blå Spyfluer"]
[null,null,null,null," ",null,null," ",null,null,null," ",null," ",null," "]
[null,null,null,null,null,null,null,null,null," ",null,null,null,null,null,null,{"$f":"IF(AM50=1,VLOOKUP(AM49,AM51:AN62,2,FALSE),\"   Calliphora sp. \")","v":"  Calliphora vicina "},null,null,null,null,null,null,null,null,null,null,null,null,null,null,null,null,null,3,null,null,null,null,null,null,null,null,null,null,null,null,"*"," ","* "," ","*",null,"*",null,"*",null,"*",null,"*",null,"*"]
[null,null,null,null,null,null,null,null,null,null,null,null,null,null,null,null,null,null,null,null,null,null,null,null,null,null,null,null,null,null,null,null,null,null,null,null,null,null,{"$f":"SUM(AV47+AX47+AZ47+BB47+BD47+BF47+BH47+BJ47)","v":3},"Afkrydsede felter *",null,null,null,null,null,null,null,{"$f":"IF(AW47=0,0,1)","v":1},{"$f":"SUM(AV48:AW48)","v":1},{"$f":"IF(AY47=0,0,1)","v":1},{"$f":"SUM(AX48:AY48)","v":1},{"$f":"IF(BA47=0,0,1)","v":0},{"$f":"SUM(AZ48:BA48)","v":0},{"$f":"IF(BC47=0,0,1)","v":1},{"$f":"SUM(BB48:BC48)","v":1},{"$f":"IF(BE47=0,0,1)","v":0},{"$f":"SUM(BD48:BE48)","v":0},{"$f":"IF(BG47=0,0,1)","v":0},{"$f":"SUM(BF48:BG48)","v":0},{"$f":"IF(BI47=0,0,1)","v":0},{"$f":"SUM(BH48:BI48)","v":0},{"$f":"IF(BK47=0,0,1)","v":0},{"$f":"SUM(BJ48:BK48)","v":0}]
["Øjne  meget smalt adskilte, hanner ?",null,null,null,null,null,null,null,null,null,null," ",null,null,null,null,null,null,null,null,null,null,null,null,null,null,null,null,null,null,null,null,null,null,{"$f":"IF(AJ48= TRUE,\"x\",\" \")","v":"x"},true,null,null,null,null,null,null,null,null,null,null,null,{"$f":"IF(AI48=\" \",0,1)","v":1},{"$f":"IF(AI49=\" \",0,1)","v":0},{"$f":"IF(AI51=\" \",0,1)","v":1},{"$f":"IF(AI52=\" \",0,1)","v":0},{"$f":"IF(AI53=\" \",0,1)","v":0},{"$f":"IF(AI55=\" \",0,1)","v":0},{"$f":"IF(AI56=\" \",0,1)","v":1},{"$f":"IF(AI57=\" \",0,1)","v":0},{"$f":"IF(AI59=\" \",0,1)","v":0},{"$f":"IF(AI60=\" \",0,1)","v":0},{"$f":"IF(AI61=\" \",0,1)","v":0},{"$f":"IF(AI63=\" \",0,1)","v":0},{"$f":"IF(AI64=\" \",0,1)","v":0},{"$f":"IF(AI65=\" \",0,1)","v":0},{"$f":"IF(AI67=\" \",0,1)","v":0},{"$f":"IF(AI68=\" \",0,1)","v":0}]
["   -      bredt adskilte, hunner ?",null,null,null,null,null,null,null,null,null,null," ",null,null,{"$f":"IF(AM50=1,\"             Fluen er nu bestemt. Se ovenfor.\",\" \")","v":"             Fluen er nu bestemt. Se ovenfor."},null,null,null,null,null,null,null,null,null,null,null,null,null,null,null,null,null,null,null,{"$f":"IF(AJ49=TRUE,\"x\",\" \")","v":" "},false,null,null,{"$f":"MAX(AM51:AM54)","v":3},"Maks.",null,null,null,null,null,null,null,null,null,null,null,null,null,null,null," "]
["Basicosta gult eller måske noget brunligt, aldrig sort ?",null,null,null,null,null,null,null,null,null,null," ",null,null,{"$f":"IF(AM50=1,\" \",IF(AM47=AM49,\"      Se de mulige arter  i oversigten nedenfor.\",\" \"))","v":" "},null,null,null,null,null,null,null,null,null,null,null,null,null,null,null,null,null,null,null,null,null,null,null,{"$f":"COUNTIF(AM51:AM62,AM49)","v":1},"Ant. Maks"]
["        -       sort ?",null,null,null,null,null,null,null,null,null,null,null,null,null,null,null,null,null,null,null,null,null,null,null,null,null,null,null,null,null,null,null,null,null,{"$f":"IF(AJ51= TRUE,\"x\",\" \")","v":"x"},true,null,null,{"$f":"SUM(AV51:BK51)","v":1},"  Calliphora  loewi",null,null,null,null,null,null,null,{"$f":"IF(AI48=\"x\",1,\" \")","v":1},{"$f":"IF($AI$49=\"x\",1,\" \")","v":" "},null,{"$f":"IF($AI$52=\"x\",1,\" \")","v":" "},null,{"$f":"IF($AI$55=\"x\",1,\" \")","v":" "},null,{"$f":"IF($AI$57=\"x\",1,\" \")","v":" "},{"$f":"IF(AI59=\"x\",1,\" \")","v":" "},null,null,{"$f":"IF($AI$63=\"x\",1,\" \")","v":" "},null,{"$f":"IF($AI$65=\"x\",1,\" \")","v":" "},{"$f":"IF($AI$67=\"x\",1,\" \")","v":" "},{"$f":"IF($AI$68=\"x\",1,\" \")","v":" "},null,null,null,{"$f":"IF($AI$74=\"x\",1,\" \")","v":" "}]
["Kinder grålige eller mørkere med ræverødt \"Skipperskæg\" ? ",null,null,null,null,null,null,null,null,null,null,null,null,null,{"$f":"IF(AM47>AM49,\"  Afkrydsede kendetegn passer ikke med nøglens.\",\" \")","v":" "},null,null,null,null,null,null,null,null,null,null,null,null,null,null,null,null,null,null,null,{"$f":"IF(AJ52= TRUE,\"x\",\" \")","v":" "},false,null,null,{"$f":"SUM(AV52:BK52)","v":1},"Calliphora subalpina ",null,null,null,null,null,null,null,{"$f":"IF(AI48=\"x\",1,\" \")","v":1},{"$f":"IF($AI$49=\"x\",1,\" \")","v":" "},null,{"$f":"IF($AI$52=\"x\",1,\" \")","v":" "},null," ",null,{"$f":"IF($AI$57=\"x\",1,\" \")","v":" "},{"$f":"IF(AI59=\"x\",1,\" \")","v":" "},null,{"$f":"IF($AI$61=\"x\",1,\" \")","v":" "},null,null," ",null,{"$f":"IF($AI$68=\"x\",1,\" \")","v":" "},null,null,{"$f":"IF($AI$72=\"x\",1,\" \")","v":" "}," "]
["      -     grålige, sorte  eller gullige, men ikke med ræverøde hår ?",null,null,null,null,null,null,null,null,null,null,null,null,null,{"$f":"IF(AM47>AM49,\"  Det gør en bestemmelse tvivlsom.    Prøv igen !\",\" \")","v":" "},null,null,null,null,null,null,null,null,null,null,null,null,null,null,null,null,null,null,null,{"$f":"IF(AJ53= TRUE,\"x\",\" \")","v":" "},false,null,null,{"$f":"SUM(AV53:BK53)","v":1},"Calliphora vomitoria ",null,null,null,null,null,null,null,{"$f":"IF(AI48=\"x\",1,\" \")","v":1}," ",null,{"$f":"IF($AI52=\"x\",1,\" \")","v":" "},{"$f":"IF(AI53=\"x\",1,\" \")","v":" "},null,null,{"$f":"IF($AI$57=\"x\",1,\" \")","v":" "},null,{"$f":"IF($AI$60=\"x\",1,\" \")","v":" "},null,{"$f":"IF($AI$63=\"x\",1,\" \")","v":" "},{"$f":"IF($AI$64=\"x\",1,\" \")","v":" "},null,null,{"$f":"IF($AI$68=\"x\",1,\" \")","v":" "},null,null," ",{"$f":"IF($AI$74=\"x\",1,\" \")","v":" "}]
["Forspirakel gult eller orangefarvet, måske lidt mørkere ? ",null,null,null,null,null,null,null,null,null,null,null,null,"    Vil du læse om en art, så klik på dens nummer.",null,null,null,null,null,null,null,null,null,null,null,null,null,null,null,null,null,null,null,null," ",null,null,null,{"$f":"SUM(AV54:BK54)","v":3},"  Calliphora vicina ",null,null,null,null,null,null,null,{"$f":"IF(AI48=\"x\",1,\" \")","v":1}," ",{"$f":"IF($AI$51=\"x\",1,\" \")","v":1},null,null,{"$f":"IF($AI$55=\"x\",1,\" \")","v":" "},{"$f":"IF($AI$56=\"x\",1,\" \")","v":1},null,null,{"$f":"IF($AI$60=\"x\",1,\" \")","v":" "},null,{"$f":"IF($AI$63=\"x\",1,\" \")","v":" "},null,{"$f":"IF($AI$65=\"x\",1,\" \")","v":" "},null,{"$f":"IF($AI$68=\"x\",1,\" \")","v":" "},null,null,{"$f":"IF($AI$72=\"x\",1,\" \")","v":" "}]
["        -          -      mørkt ?",null,null,null,null,null,null,null,null,null,null," ",null,null,null,null,null,null,null,null,null,null,null,null,null,null,null,null,null,null," ",null,null,null,{"$f":"IF(AJ55= TRUE,\"x\",\" \")","v":" "},false,null,null,{"$f":"SUM(AV55:BP55)","v":0}]
["Bryst fortil med bred ubestøvet sort stribe mellem acr-børsterne ?",null,null,null,null,null,null,null,null,null,null," ",null,null,null,null,{"$f":"IF(AM51=AM49,\"Calliphora loewi\",\" \")","v":" "},null,null,null,null,null,null,null,null,null,null,null,null,null,null,null,null,null,{"$f":"IF(AJ56= TRUE,\"x\",\" \")","v":"x"},true,null,null,0]
["   -     ikke med sådan bred sort stribe, (skal ses skråt bagfra) ?",null,null,null,null,null,null,null,null,null,null,null,null,null,null,null,{"$f":"IF(AM52=AM49,\"Calliphora subalpina\",\" \")","v":" "},null,null,null,null,null,null,null,null,null,null,null,null,null,null,null,null,null,{"$f":"IF(AJ57= TRUE,\"x\",\" \")","v":" "},false,null,null,0]
["Brysskæl  hvide eller næsten hvide ?",null,null,null,null,null,null,null,null,null,null," ",null,null,null,null,{"$f":"IF(AM53=AM49,\"Calliphora vomitoria\",\" \")","v":" "},null,null,null,null,null,null,null,null,null,null,null,null,null,null,null,{"$f":"VLOOKUP(E82,E86:F106,2)","v":"Basicosta  gult"},null," ",null,null,null,0]
["       -        tydeligt røgfarvede ?",null,null,null,null,null,null,null,null,null,null," ",null,null,null,null,{"$f":"IF(AM54=AM49,\"Calliphora vicina\",\" \")","v":"Calliphora vicina"},null,null,null,null,null,null,null,null,null,null,null,null,null,null,null,null,null,{"$f":"IF(AJ59= TRUE,\"x\",\" \")","v":" "},false,null,null,0]
["Bagkrops skiftende mønster svagt, 3. led næsten uden mønster ?",null,null,null,null,null,null,null,null,null,null," ",null,null,null,null,null,null,null,null,null,null,null,null,null,null,null,null,null,null,null,null,null,null,{"$f":"IF(AJ60= TRUE,\"x\",\" \")","v":" "},false,null,null,0]
["      -             -              -        tydeligt på alle led?        ",null,null,null,null,null,null,null,null,null,null," ",null,null,null,null,null,null,null,null,null,null,null,null,null,null,null,null,null,null,null,null,null,null,{"$f":"IF(AJ61= TRUE,\"x\",\" \")","v":" "},false,null,null,0]
["Følehorn meget lange, 3. led næsten til mundkant (hos hun) ?",null,null,null,null,null,null,null,null,null,null," ",null,null,null,null,null,null,null,null,null,null,null,null,null,null,null,null,null,null,null,null,null,null," ",null,null,null,0]
["     -        kortere, 3. led  3-4 gange så langet som bredt ?",null,null,null,null,null,null,null,null,null,null," ",null,null,null,null,null,null,null,null,null,null,null,null,null,null,null,null,null,null,null,null,null,null,{"$f":"IF(AJ63= TRUE,\"x\",\" \")","v":" "},false]
[null,null,null,null,null,null,null,null,null,null,null,null,null,null,null,null,null,null,null,null,null,null,null,null,null,null,null,null,null,null,null,null,null,null,{"$f":"IF(AJ64= TRUE,\"x\",\" \")","v":" "},false,null,null,{"$f":"SUM(AX51:BP51)","v":0},null,null,null,null,null,null,null,null,null,null,null,null,null,null,null,null,null,null,1,"Eristalis abusiva."]
[null,null,null,null,null,null,null,null,null,null,null,null,null,null,null,null,null,null,null,null,null,null,null,null,null,null,null,null,null,null,null,null,null,null,{"$f":"IF(AJ65= TRUE,\"x\",\" \")","v":" "},false,null,null,{"$f":"SUM(AX52:BP52)","v":0},null,null,null,null,null,null,null,null,null,null,null,null,null,null,null,null,null,null,2,"Eristalis anthophorina."]
["Den lille hurtige nøgle til typiske eksemplarer:",null,null,null,null,null,null,null,null,null,null,null,null,null,null,null,null,null,null,null,null,null,null,null,null,null,null,null,null,null,null,null,"         Her skal billedee visis",null," ",null,null,null,{"$f":"SUM(AX53:BP53)","v":0},null,null,null,null,null,null,null,null,null,null,null,null,null,null,null,null,null,null,3,"Eristalis arbustorum."]
[null,null,null,null,null,null,null,null,null,null,null,null,null,null,null,null,null,null,null,null,null,null,null,null,null,null,null,null,null,null,null,null,null,null,{"$f":"IF(AJ67= TRUE,\"x\",\" \")","v":" "},false,null,null,{"$f":"SUM(AX54:BP54)","v":2},null,null,null,null,null,null,null,null,null,null,null,null,null,null,null,null,null,null,4,"Eristalis cryptarum."]
["Basicosta gult, forspirakel gult…………...…..….......C.  vicina     ",null,null,null,null,null,null,null,null,null,null,null,null,null,null,null,null,null,null,null,null,null,null,null,null,null,null,null,null,null,null,null,null,null,{"$f":"IF(AJ68= TRUE,\"x\",\" \")","v":" "},false,null,null,{"$f":"SUM(AV55:BP55)","v":0},null,null,null,null,null,null,null,null,null,null,null,null,null,null,null,null,null,null,5,"Eristalis interrupta."]
["Forspirakel mørkt, hår på kinder rødgule…….....….C.  vomitoria",null,null,null,null,null,null,null,null,null,null,null,null,null,null,null,null,null,null,null,null,null,null,null,null,null,null,null,null,null,null,null,null,null,null,0,null,null,0,null,null,null,null,null,null,null,null,null,null,null,null,null,null,null,null,null,null,6,"Eristalis intricaria."]
["Hår på kinder sorte, brystskæl hvidlige……..…...... C.  subalpina",null,null,null,null,null,null,null,null,null,null,null,null,null,null,null,null,null,null,null,null,null,null,null,null,null,null,null,null,null,null,null,null,null," ",null,null,null,0,null,null,null,null,null,null,null,null,null,null,null,null,null,null,null,null,null,null,7,"Eristalis lineata."]
["Brystskæl, basicosta, forspirakel, hår på kinder mørke... C.  loewi",null,null,null,null,null,null,null,null,null,null,null,null,null,null,null,null,null,null,null,null,null,null,null,null,null,null,null,null,null,null,null,null,null,null,0,null,null,0,null,null,null,null,null,null,null,null,null,null,null,null,null,null,null,null,null,null,8,"Eristalis oestracea."]
[null,null,null,null,null,null,null,null,null,null,null,null,null,null,null,null,null,null,null,null,null,null,null,null,null,null,null,null,null,null,null,null,{"$f":"VLOOKUP(K82,L85:M88,2)","v":"      Calliphora vicina"},null,null,0,null,null,0,null,null,null,null,null,null,null,null,null,null,null,null,null,null,null,null,null,null,9,"Eristalis pertinax."]
[null,null,null,null,null,null,null,null,null,null,null,null,null,null,null,null,null,null,null,null,null,null,null,null,null,null,null,null,null,null,null,null,null,null,null,null,null,null,0,null,null,null,null,null,null,null,null,null,null,null,null,null,null,null,null,null,null,10,"Eristalis rupium gruppe."]
[null,null,null,null,null,null,null,null,null,null,null,null,null,null,null,null,null,null,null,null,null,null,null,null,null,null,null,null,null,null,null,null,null,null,null,0,null,null,0,null,null,null,null,null,null,null,null,null,null,null,null,null,null,null,null,null,null,11,"Eristalis similis."]
[null,null,null,null,null,null,null,null,null,null,null,null,null,null,null,null,null,null,null,null,null,null,null,null,null,null,null,null,null,null,null,null,null,null,null,0,null,null,0,null,null,null,null,null,null,null,null,null,null,null,null,null,null,null,null,null,null,12,"Eristalis tenax."]
[null,null,null,null,null,null,null,null,null,null,null,null,null,null,null,null,null,null,null,null,null,null,null,null,null,null,null,null,null,null,null,null,null,null,null,null,null,null,null,"        Blå Spyflue"]
[]
[]
[]
[]
[null,null,null,null,"AI46",null,null,null,null,null,"AL91"]
[null,null,null,null,{"$f":"AI46","v":3},"   Kendetegn",null,null,null,null,{"$f":"AL91","v":4},null,null,"Billeder af arter"]
[]
[]
[null,null,null,null,null,null,null,null,null,null,null,1,"        Calliphora loewi"]
[null,null,null,null,1,"Øjne kun smalt adskilte, han",null,null,null,null,null,2,"     Calliphora subalpina"]
[null,null,null,null,2," Øjne bredt adskilt, hunner",null,null,null,null,null,3,"     Calliphora vomitoria"]
[null,null,null,null,3,"Basicosta  gult",null,null,null,null,null,4,"      Calliphora vicina",null,null,null,null,null,null,null,null,null,null,null,null,null,null,null,null,null,null,null,null,null,null," "]
[null,null,null,null,4,"Basicosta sort"]
[null,null,null,null,5,"Kinder med \"Skipperskæg\""]
[null,null,null,null,6,"Kinder med sorte hår",null,null,null,null,null,null,null,null,null,null,null,null,null,null,null,null,null,null,null,null,null,null,null,null,null,null,null,null,null,null," ",4]
[null,null,null,null,7,"Forreste spirakel gult eller rødgult",null,null,null,null,null,null,null,null,null,null,null,null,null,null,null,null,null,null,null,null,null,null,null,null,null,null,null,null,null,null," "]
[null,null,null,null,8,"Forspirakel mørkt. Midt i billedet ",null,null,null,null,null,null,null,null,null,null,null,null,null,null,null,null,null,null,null,null,null,null,null,null,null,null,null,null,null,null," "]
[null,null,null,null,9,"Bred sort stribe mellem acr.børster"]
[null,null,null,null,10,"Ingen bred stribe mellem acr.børster"]
[null,null,null,null,11,"   Brystskæl hvidlige   "]
[null,null,null,null,12,"Brystskæl mørke, røgfarvede"]
[null,null,null,null,13,"Mønster svagt, 3. led næsten uden "]
[null,null,null,null,14,"Bagkrops skiftende mønster tydeligt "]
[null,null,null,null,15,"Følehorn meget lange",null,null,null,null,null,null,null,null,null,null,null,null,null,null,null,null,null,null,null,null,null,null,null,null,null,null,null,null,null,null," "]
[null,null,null,null,16,"Følehorn kortere"]
[]
[]
[]
[null,null,null," "]
[null,null,null," "]
[null,null,null," "]
[null,null,null," "]
[null,null,null," "]
[null,null,null," "]
[null,null,null," ",null,null,null,null,null,null,null,null,null,null,null,null,null,null,null,null,null,null,null,null,null,null,null,null,null,null,null,null,null,null,null,null,null,null,null,null,null,null,null,null,null,null,null,null,null,null,null,null,null,null,null,null,null,null,null,null,null,null,null,null,null,null,null,null,null,null,null,null,null,null,null,null,null,null,null,null,null,null,null,null,null,null,null,null,null,{"$f":"SUM(K82)","v":4},{"$f":"VLOOKUP(CL111,'Ark3'!B1:C7,2,FALSE)","v":"ARK3!A4"}]
[null,null,null," ",null,null,null,null,null,null,null,null,null,null,null,"Lopslag for teksterne bruger CK111 og CL111 og CM111 sammen med K82(AL91) , der er lig alternativknapperne",null,null,null,null,null,null,null,null,null,null,null,null,null,null,null,null,null,null,null,null,null,null,null,null,null,null,null,null,null,null,null,null,null,null,null,null,null,null,null,null,null,null,null,null,null,null,null,null,null,null,null,null,null,null,null,null,null,null,null,null,null,null,null,null,null,null,null,null,null,null,null,null,null,{"$f":"SUM(K82)","v":4},{"$f":"VLOOKUP(CL112,'Ark2'!G1:H7,2,FALSE)","v":"Ark2!F4"}]
[null,null,null," ",null,null,null,null,null,null,null,null,null,null,null,"Lopslag for kendetegnbillede bruger CK113 og CL113 og CM113 sammen med AI46 , der er lig checkboxene",null,null,null,null,null,null,null,null,null,null,null,null,null,null,null,null,null,null,null,null,null,null,null,null,null,null,null,null,null,null,null,null,null,null,null,null,null,null,null,null,null,null,null,null,null,null,null,null,null,null,null,null,null,null,null,null,null,null,null,null,null,null,null,null,null,null,null,null,null,null,null,null,null,{"$f":"SUM(AI46)","v":3},{"$f":"VLOOKUP(CL113,'Ark2'!L1:M21,2,FALSE)","v":"Ark2!K3"}]
[null,null,null," ",null,null,null,null,null,null,null,null,null,null,null,"Lopslag for billede1(ark 2, F1 til F4) bruger CK112 og CL112 og CM112 sammen med K82(AL91) , der er lig alternativknapperne"]
[null,null,null," ",null,null,null,null,null,null,null,null,null,null,null,"flag3 er for kendetegnbillede;flag2 er for 1. billede;flag1 er for teksterne"]
[null,null,null," "]
[null,null,null," "]
[null,null,null," "]
[null,null,null," "]
[null,null,null," "]
[null,null,null," "]
[null,null,null," "]
[]
[null,null,null,null,null,null,null,null,null,null,null,null,null,null,null,null,null,null,null,null,null,null,null,null,null,null,null,null,null,null,null,null,null,null," "]
[]
[]
[]
[]
[]
[]
[]
[]
[null,null,null,null,null,null,null,null,null,null,null,null,null,null,null,null,null,null,null,null,null,null,null,null,null,null,null,null,null,null,null,null,null," "]
[]
[null,null,null,null,null,null,null,null,null,null,null,null,null,null,null,null,null,null,null,null,null,null,null,null,null,null,null,null,null,null,null,null,null,null,null," "]
[]
[]
[]
[]
[]
[]
[]
[]
[]
[]
[]
[]
[]
[]
[]
[]
[]
[]
[]
[]
[]
[]
[]
[]
[]
[]
[]
[]
[]
[]
[]
[]
[]
[null,null,null,null,null,null,null,null,null,null,null,null,null,null,null,null,null,null,null,null,null,null,null,null,null,null,null,null,null,null,null,null,null," "]

{"sheet":"Ark2","index":1,"n_rows":21,"n_cols":13,"rows_kept":21,"cut":false,"hidden":false,"merged":[]}
[null,1,"Ark2!A1",null,null,null,1,"Ark2!F1",null,null,null,1,"Ark2!K1"]
[null,2,"Ark2!A2",null,null,null,2,"Ark2!F2",null,null,null,2,"Ark2!K2"]
[null,3,"Ark2!A3",null,null,null,3,"Ark2!F3",null,null,null,3,"Ark2!K3"]
[null,4,"Ark2!A4",null,null,null,4,"Ark2!F4",null,null,null,4,"Ark2!K4"]
[null,5,"Ark2!A5",null,null,null,5,"Ark2!F5",null,null,null,5,"Ark2!K5"]
[null,6,"Ark2!A6",null,null,null,6,"Ark2!F6",null,null,null,6,"Ark2!K6"]
[null,7,"Ark2!A7",null,null,null,7,"Ark2!F7",null,null,null,7,"Ark2!K7"]
[null,8,"Ark2!A8",null,null,null,8,"Ark2!F8",null,null,null,8,"Ark2!K8"]
[null,9,"Ark2!A9",null,null,null,9,"Ark2!F9",null,null,null,9,"Ark2!K9"]
[null,10,"Ark2!A10",null,null,null,10,"Ark2!F10",null,null,null,10,"Ark2!K10"]
[null,11,"Ark2!A11",null,null,null,11,"Ark2!F11",null,null,null,11,"Ark2!K11"]
[null,12,"Ark2!A12",null,null,null,12,"Ark2!F12",null,null,null,12,"Ark2!K12"]
[null,null,null,null,null,null,null,null,null,null,null,13,"Ark2!K13"]
[null,null,null,null,null,null,null,null,null,null,null,14,"Ark2!K14"]
[null,null,null,null,null,null,null,null,null,null,null,15,"Ark2!K15"]
[null,null,null,null,null,null,null,null,null,null,null,16,"Ark2!K16"]
[null,null,null,null,null,null,null,null,null,null,null,17,"Ark2!K17"]
[null,null,null,null,null,null,null,null,null,null,null,18,"Ark2!K18"]
[null,null,null,null,null,null,null,null,null,null,null,19,"Ark2!K19"]
[null,null,null,null,null,null,null,null,null,null,null,20,"Ark2!K20"]
[null,null,null,null,null,null,null,null,null,null,null,21,"Ark2!K21"]

{"sheet":"Ark3","index":2,"n_rows":7,"n_cols":3,"rows_kept":7,"cut":false,"hidden":false,"merged":[]}
[null,1,"ARK3!A1"]
[null,2,"ARK3!A2"]
[null,3,"ARK3!A3"]
[null,4,"ARK3!A4"]
[" ",5,"ARK3!A5"]
[null,6,"ARK3!A6"]
[null,7,"ARK3!A7"]

{"sheet":"Ark4","index":3,"n_rows":15,"n_cols":3,"rows_kept":15,"cut":false,"hidden":false,"merged":[]}
[null,1,"ARK4!A1"]
[null,2,"ARK4!A2"]
[null,3,"ARK4!A3"]
[null,4,"ARK4!A4"]
[null,5,"ARK4!A5"]
[null,6,"ARK4!A6"]
[null,7,"ARK4!A7"]
[null,8,"ARK4!A8"]
[null,9,"ARK4!A9"]
[null,10,"ARK4!A10"]
[null,11,"ARK4!A11"]
[null,12,"ARK4!A12"]
[null,13,"ARK4!A13"]
[null,14,"ARK4!A14"]
[null,15,"ARK4!A5"]